Cogmind - Beta 15 @@@ ROGUE MODE // 2025.05.11 @ 23:41:49 Player: Ulinator001 Result: Destroyed by XG-Q7W(R) with Subdweller Beam Cannon Performance ------------- Evolutions (0) 0 Regions Visited (2) 400 Robots Destroyed (18) 90 Value Destroyed (588) 588 Prototype IDs (2) 40 Alien Tech Used (0) 0 Bonus (0) 0 TOTAL SCORE: 1118 Bonus ------- None Cogmind --------- Core Integrity 0/250 Matter 290/300 Energy 29/125 System Corruption 0% Temperature Cool (21) Movement Rolling (120) Ox1 Location -10/Subcaves Parts ------- > --- POWER (1) -------- Light Ion Engine > --- PROPULSION (2) --- Subdweller Monowheel > --- UTILITY (2) ------ Small Storage Unit Subdweller Optics > --- WEAPON (2) ------- Subdweller Laser Subdweller Beam Cannon > --- INVENTORY (8) ---- Subdweller Power Source Improved Terrain Scanner Scrap Shield Subdweller Beam Cannon Scrap Shield Fragment (46) Scrap Shield Fragment (44) Scrap Shield Fragment (43) Peak State ------------ > --- POWER ------------ Neutrino Core > --- PROPULSION ------- Carbon-fiber Leg Carbon-fiber Leg > --- UTILITY ---------- Small Storage Unit Subdweller Optics > --- WEAPON ----------- Subdweller Beam Cannon Hammer > --- INVENTORY -------- Subdweller Power Source Improved Terrain Scanner Scrap Shield Subdweller Beam Cannon Scrap Shield Fragment Scrap Shield Fragment [Rating: 19] Favorites ----------- Power Subdweller Power Source Engine Subdweller Power Source Power Core Neutrino Core Propulsion Subdweller Monowheel Leg Aluminum Leg Wheel Subdweller Monowheel Utility Small Storage Unit Device Subdweller Optics Storage Small Storage Unit Weapon Subdweller Beam Cannon Energy Gun Subdweller Laser Energy Cannon Subdweller Beam Cannon Ballistic Gun Light Assault Rifle Ballistic Cannon Battle Cannon Special Weapon Flamer Impact Weapon Hammer Build | -11 -10 -10 ------- Run | Yrd Mat Sub Slots Evolved . | . . . Power . | . . . Propulsion . | . . . Utility . | . . . Weapon . | . . . Parts Attached 33 | 7 . 26 Power 6 | 1 . 5 Engine 5 | 1 . 4 Core 1 | . . 1 Reactor . | . . . Propulsion 8 | 2 . 6 Treads . | . . . Leg 4 | 2 . 2 Wheel 4 | . . 4 Hover . | . . . Flight . | . . . Utility 7 | 2 . 5 Device 6 | 1 . 5 Storage 1 | 1 . . Processor . | . . . Hackware . | . . . Protection . | . . . Artifact . | . . . Weapon 12 | 2 . 10 Energy Gun 1 | . . 1 Energy Cannon 2 | . . 2 Ballistic Gun 6 | 2 . 4 Ballistic Cannon 1 | . . 1 Launcher . | . . . Special Weapon 1 | . . 1 Impact Weapon 1 | . . 1 Slashing Weapon . | . . . Piercing Weapon . | . . . Special Melee Weapon . | . . . Unidentified Prototypes . | . . . Parts Lost 4 | . . 4 Power 1 | . . 1 Propulsion 1 | . . 1 Utility 1 | . . 1 Weapon 1 | . . 1 Highest Loss Streak 3 | . . 3 To Critical Strikes . | . . . Average Backups 4 | 3 6 4 Power . | . 1 1 Propulsion . | 1 2 . Utility 1 | . 1 2 Weapon . | . 1 . Tool/Special . | . . . Unused Backups 8 | . . 8 Power 1 | . . 1 Propulsion 2 | . . 2 Utility 3 | . . 3 Weapon 2 | . . 2 Tool/Special . | . . . Average Slot Usage (%) 98 | . 100 98 Engine 10 | . 14 9 Core 3 | . . 3 Leg 8 | . 28 6 Wheel 18 | . . 21 Device 13 | . 14 13 Storage 14 | . 14 14 Energy Gun 1 | . . 1 Energy Cannon 11 | . . 12 Ballistic Gun 11 | . 28 9 Impact Weapon 3 | . . 3 Peak Build Rating 19 | 7 7 19 Average Rating 12 | 5 7 13 On Entrance 4 | . 7 7 Naked Turns . | . . . Heaviest Build 33 | 11 11 33 Greatest Support 40 | 20 20 40 Greatest Overweight (x) 1 | . . 1 Average Overweight (x) . | . . . Largest Inventory Capacity 8 | 8 8 8 Average Capacity 7 | 7 8 8 Most Carried 8 | 5 7 8 Average Carried 7 | 3 6 7 Final Capacity 8 | 8 8 8 Final Carried 8 | 5 7 8 Class Distribution -------------------- 66% | Scavenger-Mutant 33% | Mutant Dominant Class ---------------- Mutant | -10/Materials Scavenger-Mutant | -10/Subcaves Resources | -11 -10 -10 ----------- Run | Yrd Mat Sub Matter Collected 612 | 284 . 328 Remotely . | . . . Salvage Created 617 | 65 . 552 Parts 43 | 12 . 31 Haulers Intercepted . | . . . Recyclers Shooed . | . . . Parts Field Recycled . | . . . Retrieved Matter . | . . . Parts Self-Destructed 8 | . . 8 Prevented . | . . . Kills | -11 -10 -10 ------- Run | Yrd Mat Sub Combat Hostiles Destroyed 14 | . . 14 Guns 1 | . . 1 Cannons 13 | . . 13 Classes Destroyed 2 | 1 . 1 Tunneler 4 | 4 . . Subdweller 14 | . . 14 Best Kill Streak 3 | 2 . 3 Combat Bots Only 3 | . . 3 Max Kills in Single Turn 1 | 1 . 1 Gunslinging . | . . . Exploded . | . . . Melee . | . . . Uniques/NPCs Destroyed . | . . . Combat | -11 -10 -10 -------- Run | Yrd Mat Sub Hostile Shots Fired 68 | . . 68 Missed 23 | . . 23 Hits 45 | . . 45 Projectile 45 | . . 45 Critical Strikes 1 | . . 1 Damage Taken 969 | . . 969 Core 269 | . . 269 Absorbed by Shields . | . . . Core Remaining (%) 100 | 100 . . Volleys Fired 54 | 10 . 44 Largest 2 | 2 . 2 Hottest 140 | 40 . 140 Shots Fired 102 | 20 . 82 Gun 58 | 20 . 38 Cannon 44 | . . 44 Launcher . | . . . Special . | . . . Kinetic 54 | 20 . 34 Thermal 48 | . . 48 Explosive . | . . . Electromagnetic . | . . . Robot Hit Streak 41 | 5 . 41 Robot Miss Streak 2 | 2 . 2 Penetration Max . | . . . Secondary Targets . | . . . Shots Hit Robots 81 | 13 . 68 Core Hits 28 | 7 . 21 Critical Kills . | . . . Critical Parts Destroyed . | . . . Critical Strikes . | . . . Melee Attacks 1 | . . 1 Impact 1 | . . 1 Slashing . | . . . Piercing . | . . . Sneak Attacks . | . . . Combat Hostiles . | . . . Follow-up Attacks . | . . . Damage Inflicted 1694 | 115 . 1579 Guns 567 | 115 . 452 Cannons 1096 | . . 1096 Explosions . | . . . Melee 31 | . . 31 Ramming . | . . . Kinetic 509 | 115 . 394 Thermal 1154 | . . 1154 Explosive . | . . . Electromagnetic . | . . . Impact 31 | . . 31 Slashing . | . . . Piercing . | . . . Highest Corruption . | . . . Average Corruption . | . . . Corruption Purged . | . . . Corruption Blocked . | . . . Overload Shots . | . . . Overflow Damage 6 | . . 6 Projectiles 6 | . . 6 Explosions . | . . . Melee . | . . . Knockbacks . | . . . Impact . | . . . Kinetic . | . . . Secondary . | . . . Self-Inflicted Damage . | . . . Shots . | . . . Rammed . | . . . Targets Rammed . | . . . Kicked . | . . . Crushed . | . . . Highest Temperature 58 | . . 58 Average Temperature 13 | . . 13 Received Heat Transfer 246 | . . 246 Siege Activations . | . . . Martial Activations . | . . . Shielding Activations . | . . . Robots Disrupted . | . . . Combat Hostiles . | . . . Robots Corrupted . | . . . Combat Hostiles . | . . . Parts Fried . | . . . Impact Corruptions . | . . . Robots Melted . | . . . Combat Hostiles . | . . . Parts Melted 3 | . . 3 Heat Transferred 1543 | . . 1543 Parts Sabotaged . | . . . Parts Stolen . | . . . Parts Stripped . | . . . Power Chain Reactions . | . . . Alert | -11 -10 -10 ------- Run | Yrd Mat Sub Maximum Alert Level . | . . . Low Security (%) 100 | 100 100 . Level 1 . | . . . Level 2 . | . . . Level 3 . | . . . Level 4 . | . . . Level 5 . | . . . High Security . | . . . Max Security . | . . . Peak Influence 10 | 10 . . Initial . | . . . Average . | 1 . . Influence Increases 20 | 20 . . Destroy 0b10 Robot/NC 20 | 20 . . Influence Decreases 20 | 20 . . Time Decay 20 | 20 . . Squads Dispatched 1 | . 1 . Investigation 1 | . 1 . Extermination . | . . . Reinforcement . | . . . Assault . | . . . Garrison . | . . . Intercept . | . . . Searches Triggered . | . . . Construction Impeded . | . . . Haulers Reinforced . | . . . Active Scanning Responses . | . . . Cargo Convoy Interrupts . | . . . Stealth | -11 -10 -10 --------- Run | Yrd Mat Sub Distress Signals . | . . . Communications Jammed . | . . . Distress Signals . | . . . Times Spotted 20 | . . 20 Peak Tracking Total 8 | . . 8 Tactical Retreats . | . . . Traps | -11 -10 -10 ------- Run | Yrd Mat Sub Traps Triggered 1 | . 1 . Indirectly . | . . . Trap Hack Attempts . | . . . Triggered . | . . . Disarmed . | . . . Reprogrammed . | . . . Reused . | . . . Traps Extracted . | . . . Installed . | . . . Triggered . | . . . Machines | -11 -10 -10 ---------- Run | Yrd Mat Sub Machines Disabled . | . . . Max in Single Turn . | . . . Machines Repaired . | . . . Machines Dismantled . | . . . Machines Sabotaged . | . . . Overloaded Fab Kills . | . . . Hacking | -11 -10 -10 --------- Run | Yrd Mat Sub Machines Accessed 3 | . 2 1 Terminals 2 | . 2 . Fabricators . | . . . Repair Stations . | . . . Recycling Units . | . . . Scanalyzers . | . . . Garrison Access . | . . . Total Hacks 10 | . 5 5 Successful 7 | . 2 5 Failed 3 | . 3 . Catastrophic 1 | . 1 . Database Lockouts . | . . . Manual 2 | . 2 . Terminals 5 | . 5 . Fabricators . | . . . Repair Stations . | . . . Recycling Units . | . . . Scanalyzers . | . . . Garrison Access . | . . . Terminal Hacks 7 | . 2 5 Record 5 | . . 5 Prototype ID Bank 1 | . 1 . Emergency Access Points 1 | . 1 . Fabricator Hacks . | . . . Repair Station Hacks . | . . . Recycling Unit Hacks . | . . . Scanalyzer . | . . . Garrison Access Hacks . | . . . Unauthorized Hacks . | . . . Terminals . | . . . Fabricators . | . . . Repair Stations . | . . . Recycling Units . | . . . Scanalyzers . | . . . Garrison Access . | . . . Data Cores Recovered . | . . . Used . | . . . Hacking Detections 1 | . 1 . Full Trace Events . | . . . Feedback Events . | . . . Feedback Blocked . | . . . Robot Schematics Acquired . | . . . Robots Built . | . . . Authchips . | . . . Time . | . . . Total Robot Build Rating . | . . . Part Schematics Acquired . | . . . Parts Built . | . . . Authchips . | . . . Time . | . . . Total Part Build Rating . | . . . Parts Repaired . | . . . Time . | . . . Parts Recycled . | . . . Recycled Matter . | . . . Retrieved Matter . | . . . Retrieved Components . | . . . Parts Scanalyzed . | . . . Part Schematics Acquired . | . . . Parts Damaged . | . . . Bothacking | -11 -10 -10 ------------ Run | Yrd Mat Sub Used RIF Installer . | . . . Robots Hacked . | . . . Non-combat . | . . . Combat . | . . . Robot Hacks Applied . | . . . Relay Couplers Released . | . . . Fabnet Peak Effective % . | . . . Robots Rewired . | . . . Allies Hacked . | . . . Hacks Repelled . | . . . Allies | -11 -10 -10 -------- Run | Yrd Mat Sub Total Allies . | . . . Largest Group . | . . . Highest-Rated Group . | . . . Highest-Rated Ally . | . . . Total Orders . | . . . Ally Attacks . | . . . Total Damage . | . . . Kills . | . . . Allies Corrupted . | . . . Allies Melted . | . . . Intel | -11 -10 -10 ------- Run | Yrd Mat Sub Active Infowar (turns) 1481 | 71 164 1246 Optics 1009 | . . 1009 Seismic 472 | 71 164 237 Robot Analysis Total . | . . . Derelict Logs Recovered 1 | . . 1 Drone Launches . | . . . Drone Recoveries . | . . . Exploration | -11 -10 -10 ------------- Run | Yrd Mat Sub Turns Passed 1752 | 143 164 1445 Spaces Moved 1241 | 90 97 1054 Core 8 | 8 . . Treads . | . . . Legs 378 | 82 97 199 Wheels 855 | . . 855 Hover . | . . . Flight . | . . . Fastest Speed 50 | 50 120 110 Average Speed 113 | 113 120 113 Slowest Speed 190 | 120 120 190 Overloaded Moves . | . . . Propulsion Burnouts . | . . . Robots Hopped . | . . . Potential Cave-ins . | . . . Cave-ins Triggered . | . . . Exploration Rate (%) 31 | 5 24 64 Regions Visited 2 Branch Regions 1 Pre-discovered Areas 1 | . . 1 Known Exits Taken . | . . . Unknown Exits Taken 2 | 1 1 . Scrap Searched 5 | . . 5 Spaces Dug . | . . . Terrain Destroyed 1 | . . 1 Melee . | . . . Projectile 1 | . . 1 AOE . | . . . Terrain Rammed . | . . . Walls Destroyed . | . . . Machines Disabled . | . . . Actions | -11 -10 -10 --------- Run | Yrd Mat Sub Total 1487 | 111 144 1232 Wait 113 | . 46 67 Move 1239 | 89 96 1054 Hop . | . . . Pick Up 15 | 5 2 8 Fast Attach 21 | 7 . 14 Attach 1 | . . 1 Detach . | . . . Swap 13 | . . 13 Drop 30 | . . 30 Fire 54 | 10 . 44 Melee 1 | . . 1 Ram . | . . . Kick . | . . . Crush . | . . . Escape Stasis . | . . . Rewire . | . . . Trap . | . . . Miscellaneous . | . . . Route ------- -11/Scrapyard -10/Materials -10/Subcaves (discovered 2 exits: [*Mat x2]) History --------- Turn | Location | Event 9 | -11/Scrapyard | Discovered new exit (range 14) 144 | -11/Scrapyard | Entered Materials 297 | -10/Materials | Discovered new exit (range 5) 308 | -10/Materials | Entered Subcaves 309 | -10/Subcaves | Approached by a straggling Scientist 316 | -10/Subcaves | Build established: Mutant 347 | -10/Subcaves | Learned Materials trap positions 420 | -10/Subcaves | Discovered new exit (range 9) 512 | -10/Subcaves | Ambushed by swarm of Subdwellers 583 | -10/Subcaves | Lost 4 allies 592 | -10/Subcaves | Lost 3 parts (1p1u1w) 712 | -10/Subcaves | Visited Clippyterm 715 | -10/Subcaves | Learned location of Extension (-5) 715 | -10/Subcaves | Learned Research security intel 898 | -10/Subcaves | Build established: Scavenger-Mutant 914 | -10/Subcaves | A swath of the cavern ceiling suddenly collapsed 946 | -10/Subcaves | Core integrity fell below 50% 1441 | -10/Subcaves | Shifting Twisted Machinery released Battle Rifle 1580 | -10/Subcaves | Core integrity fell below 20% 1598 | -10/Subcaves | Discovered new exit (range 11) 1728 | -10/Subcaves | Disturbed a concealed Subdweller 1753 | -10/Subcaves | Destroyed by XG-Q7W(R) with Subdweller Beam Cannon Last Messages --------------- Acquired Sub. Laser. EXIT=FOUND Sub. Monowheel shoots sparks and powers down. Sub. Power Source shoots sparks and powers down. Searching scrap... Found Sub. Machine Gun. Found Shrapnel Trap. Found 56 Matter. Acquired 10 matter. Searching scrap... Found Riot Gun. Found Sub. Laser. Found 34 Matter. XG-Q7W(R) angrily emerges from the Twisted Machinery. XG-Q7W(R): "SUBSUB!" XG-Q7W(R) affixes Scrap Shield Fragment to Scrap Shield. Broken Sub. Monowheel destroyed. [Achievement: This Is Interesting...] Map ----- +----------------------------------------------------+ | | | | | | | | | | | | | | | | | | | | | | | | | | | | | ?????????????????????????????????????????????????? | | ?????????????????????????????????????????????????? | | ?????????????????????????????????????????????????? | | ?????????????????????????????????????????????????? | | ?????????????????????????????????????????????????? | | ?????????????????????????????????????????????????? | | ?????????????????????????????????????????????????? | | ?????????????????????????????????????????????????? | | ?????????????????????????????????????????????????? | | ?????????????????????#######?????????????????????? | | ?????????????????????# &R[<#?????????????????????? | | ?????????????????????#[##@%#?????????????????????? | | ?????????????????????#& ####?????????????????????? | | ?????????????????????## "###?????????????????????? | | ???????????????####??## ## ###???????????????????? | | ???????????????# ####" " ##?#####??########??? | | ???????????????# # ### #### #??? | | ???????????????# #### #??? | | ???????????????## ###??# #??? | | ????????????????## ## # ## #????# #### | | ?????????????????####### ### #????# ## | | ???????????????????????# #?# #???## ## | | ???????????????????????# ##?### ## #???# | | ??????????????????????% ### ????#### | | ????????????????????? ??? ?????# ## | | ???????????????????# ??? ????# ####### | | ???????????????????## ##???## ###?????# | | ????????????????????##??????# # ###???????## | | ???????????????????????????# ##???##?????? | | ???????????????????????????#??# % #??? ?????? | | ????????????????????????????? ### ??? ????? | | ???????????????????????????? ??? ?? "??"" | | ????????????????????????????????? #?# ??" | | ?????????????????????????????????# # ??? #?# | | ?????????????????????????????????####??? ## | | ???????????????????????????????????????? | +----------------------------------------------------+ Best States ------------- Heat Dissipation 25 Energy Generation 19 Energy Capacity 315 Matter Stores 300 Matter Capacity 300 Sight Range 21 Terrain Scan Density 10 Evasion (%) 55 Item Schematics ----------------- None Robot Schematics ------------------ None Fabricated ------------ Nothing Repaired ---------- Nothing Alien Tech Used ----------------- None Achievements -------------- This Is Interesting... Challenges ------------ None Game ------ Seed KineticTimingShockpuncher Manual? 0 Play Time 00:25:39 Cumulative 17.8 hours Start 2025.05.11 @ 23:15:26 End 2025.05.11 @ 23:41:49 Sessions 1 Manual Loads 0 Difficulty Rogue Special Mode None Game No. 17 Rogue 17 Adventurer 0 Explorer 0 Win Type - Total 0 Types 0/0/0/0/0/0/0/0/0/0 Lore% 25 Gallery% 16 Achievement% 17 Wizard Run 0 Options --------- Layout 1 ASCII 0 Keyboard 0 Movement Mouse Keybinds 1 Fullscreen 1 Font 24/Smallcaps Map View 50x35 Zoom Use 0% Tactical HUD 0 Map Filters NONE Filters NONE Steam 1 RUN: 9229a159-188a-4a7f-bdce-97be08061a24